fUSD/lending_fUSD_20241121
["ID","MTS","AMOUNT","RATE_DAILY","PERIOD"]
[342853729,1732183851183,-1571.72,0.00041095,18]
[342853730,1732183851193,-500.0,0.00041095,18]
[342853731,1732183851204,-500.0,0.00041095,18]
[342853732,1732183851213,-500.0,0.00041095,18]
[342853733,1732183851225,-500.0,0.00041095,18]
[342853734,1732183851235,-500.0,0.00041095,18]
[342853735,1732183851245,-500.0,0.00041095,18]
[342853736,1732183851255,-500.0,0.00041095,18]
[342853737,1732183851264,-500.0,0.00041095,18]
[342853738,1732183851274,-500.0,0.00041095,18]
[342853739,1732183851284,-2183.46,0.00041095,18]
[342853740,1732183851294,-500.0,0.00041095,18]
[342853741,1732183851305,-500.0,0.00041095,18]
[342853742,1732183851314,-659.75,0.00041095,18]
[342853743,1732183851324,-500.0,0.00041095,18]
[342853744,1732183851334,-700.78,0.00041095,18]
[342853745,1732183851343,-500.0,0.00041095,18]
[342853746,1732183851353,-500.0,0.00041095,18]
[342853747,1732183851363,-579.5,0.00041095,18]
[342853748,1732183851372,-571.69,0.00041095,18]
[342853749,1732183851382,-500.0,0.00041095,18]
[342853750,1732183851392,-500.0,0.00041095,18]
[342853751,1732183851401,-500.0,0.00041095,18]
[342853752,1732183851411,-1350.63,0.00041095,18]
[342853753,1732183851423,-500.0,0.00041095,18]
[342853754,1732183851432,-500.0,0.00041095,18]
[342853755,1732183851442,-1104.02,0.00041095,18]
[342853756,1732183851453,-1216.73,0.00041095,18]
[342853757,1732183851463,-500.0,0.00041095,18]
[342853758,1732183851473,-794.44,0.00041095,18]
[342853759,1732183851483,-2707.42,0.00041095,18]
[342853760,1732183851493,-500.0,0.00041095,18]
[342853761,1732183851501,-500.0,0.00041095,18]
[342853762,1732183851510,-500.0,0.00041095,18]
[342853763,1732183851519,-500.0,0.00041095,18]
[342853764,1732183851530,-500.0,0.00041095,18]
[342853765,1732183851540,-500.0,0.00041095,18]
[342853766,1732183851550,-500.0,0.00041095,18]
[342853767,1732183851559,-2664.8,0.00041095,18]
[342853768,1732183851569,-500.0,0.00041095,18]
[342853769,1732183851578,-500.0,0.00041095,18]
[342853770,1732183851588,-689.69,0.00041095,18]
[342853771,1732183851597,-500.0,0.00041095,18]
[342853772,1732183851606,-1694.98,0.00041095,18]
[342853773,1732183851615,-1357.31,0.00041095,18]
[342853774,1732183851625,-500.0,0.00041095,18]
[342853775,1732183851635,-500.0,0.00041095,18]
[342853776,1732183851644,-500.0,0.00041095,18]
[342853777,1732183851654,-500.0,0.00041095,18]
[342853778,1732183851663,-500.0,0.00041095,18]
[342853779,1732183851673,-2262.73,0.00041095,18]
[342853780,1732183851682,-500.0,0.00041095,18]
[342853781,1732183851692,-500.0,0.00041095,18]
[342853782,1732183851701,-500.0,0.00041095,18]
[342853783,1732183851711,-2711.27,0.00041095,18]
[342853784,1732183851720,-1298.28,0.00041095,18]
[342853785,1732183851729,-500.0,0.00041095,18]
[342853786,1732183851739,-500.0,0.00041095,18]
[342853787,1732183851748,-767.2,0.00041095,18]
[342853788,1732183851757,-500.0,0.00041095,18]
[342853789,1732183851767,-500.0,0.00041095,18]
[342853790,1732183851776,-500.0,0.00041095,18]
[342853791,1732183851786,-500.0,0.00041095,18]
[342853792,1732183851795,-500.0,0.00041095,18]
[342853793,1732183851805,-500.0,0.00041095,18]
[342853794,1732183851814,-500.0,0.00041095,18]
[342853795,1732183851823,-737.58,0.00041095,18]
[342853796,1732183851833,-500.0,0.00041095,18]
[342853797,1732183851842,-500.0,0.00041095,18]
[342853798,1732183851851,-579.54,0.00041095,18]
[342853799,1732183851861,-1124.03,0.00041095,18]
[342853800,1732183851871,-879.07,0.00041095,18]
[342853801,1732183851880,-500.0,0.00041095,18]
[342853802,1732183851890,-500.0,0.00041095,18]
[342853803,1732183851899,-500.0,0.00041095,18]
[342853804,1732183851909,-3068.94,0.00041095,7]
[342853805,1732183851920,-1206.45,0.00041095,18]
[342853806,1732183851932,-151.0,0.00041095,14]
[342853807,1732183851942,-500.0,0.00041095,18]
[342853808,1732183851951,-500.0,0.00041095,18]
[342853809,1732183851961,-500.0,0.00041095,18]
[342853810,1732183851971,-500.0,0.00041095,18]
[342853811,1732183851980,-151.845552,0.00041095,14]
[342853812,1732183851989,-544.84,0.00041095,18]
[342853813,1732183851999,-156.14931141,0.00041095,2]
[342853814,1732183852008,-663.84,0.00041095,18]
[342853815,1732183852017,-2278.01,0.00041095,18]
[342853816,1732183852027,-500.0,0.00041095,18]
[342853817,1732183852036,-500.0,0.00041095,18]
[342853818,1732183852045,-500.0,0.00041095,18]
[342853819,1732183852054,-500.0,0.00041095,18]
[342853820,1732183852063,-512.61,0.00041095,18]
[342853821,1732183852073,-500.0,0.00041095,18]
[342853822,1732183852085,-1427.86,0.00041095,120]
[342853823,1732183852450,-500.0,0.00041095,18]
[342853824,1732183852472,-500.0,0.00041095,18]
[342853825,1732183852481,-500.0,0.00041095,18]
[342853826,1732183852491,-1409.13,0.00041095,18]
[342853827,1732183852500,-749.22,0.00041095,18]
[342853828,1732183852509,-1204.01,0.00041095,18]
[342853829,1732183852518,-779.96,0.00041095,18]
[342853830,1732183852528,-3189.74,0.00041095,18]
[342853831,1732183852537,-500.0,0.00041095,18]
[342853832,1732183852546,-500.0,0.00041095,18]
[342853833,1732183852555,-500.0,0.00041095,18]
[342853834,1732183852564,-1469.76,0.00041095,18]
[342853835,1732183852574,-500.0,0.00041095,18]
[342853836,1732183852583,-500.0,0.00041095,18]
[342853837,1732183852592,-500.0,0.00041095,18]
[342853838,1732183852602,-1008.38,0.00041095,18]
[342853839,1732183852611,-500.0,0.00041095,18]
[342853840,1732183852619,-3098.72,0.00041095,18]
[342853841,1732183852629,-500.0,0.00041095,18]
[342853842,1732183852639,-3283.99,0.00041095,18]
[342853843,1732183852648,-500.0,0.00041095,18]
[342853844,1732183852657,-539.55342547,0.00041095,18]
[342853845,1732183852667,-500.0,0.00041095,18]
[342853846,1732183852679,-500.0,0.00041095,18]
[342853847,1732183852688,-500.0,0.00041095,18]
[342853848,1732183852697,-500.0,0.00041095,18]
[342853849,1732183852707,-1064.97,0.00041095,18]
[342853850,1732183852716,-620.04,0.00041095,18]
[342853851,1732183852725,-2384.59,0.00041095,18]
[342853852,1732183852735,-500.0,0.00041095,18]
[342853853,1732183852744,-500.0,0.00041095,18]
[342853854,1732183852754,-502.49761068,0.00041095,18]
[342853855,1732183852764,-500.0,0.00041095,18]
[342853856,1732183852773,-500.0,0.00041095,18]
[342853857,1732183852783,-151.0,0.00041095,14]
[342853858,1732183852792,-151.0,0.00041095,14]
[342853859,1732183852802,-500.0,0.00041095,18]
[342853860,1732183852811,-500.0,0.00041095,18]
[342853861,1732183852821,-1340.23,0.00041095,18]
[342853862,1732183852831,-1456.53,0.00041095,18]
[342853863,1732183852841,-500.0,0.00041095,18]
[342853864,1732183852850,-155.249189,0.00041095,14]
[342853865,1732183852859,-1913.39,0.00041095,18]
[342853866,1732183852869,-2208.1,0.00041095,18]
[342853867,1732183852879,-500.0,0.00041095,18]
[342853868,1732183852889,-500.0,0.00041095,18]
[342853869,1732183852898,-500.0,0.00041095,18]
[342853870,1732183852907,-500.0,0.00041095,18]
[342853871,1732183852917,-661.73,0.00041095,18]
[342853872,1732183852929,-500.0,0.00041095,18]
[342853873,1732183852938,-1164.67,0.00041095,18]
[342853874,1732183852948,-500.0,0.00041095,18]
[342853875,1732183852957,-641.09,0.00041095,18]
[342853876,1732183852967,-500.0,0.00041095,18]
[342853877,1732183852977,-500.0,0.00041095,18]
[342853878,1732183852986,-500.0,0.00041095,18]
[342853879,1732183852996,-500.0,0.00041095,18]
[342853880,1732183853007,-3287.89,0.00041095,18]
[342853881,1732183853018,-576.59,0.00041095,18]
[342853882,1732183853028,-1753.57,0.00041095,18]
[342853883,1732183853037,-500.0,0.00041095,18]
[342853884,1732183853046,-500.0,0.00041095,18]
[342853885,1732183853056,-290.577153,0.00041095,14]
[342853886,1732183853066,-1058.06,0.00041095,18]
[342853887,1732183853076,-151.0,0.00041095,14]
[342853888,1732183853087,-151.0,0.00041095,14]
[342853889,1732183853096,-151.0,0.00041095,14]
[342853890,1732183853105,-500.0,0.00041095,18]
[342853891,1732183853115,-510.27,0.00041095,18]
[342853892,1732183853124,-500.0,0.00041095,18]
[342853893,1732183853134,-151.0,0.00041095,14]
[342853894,1732183853143,-500.0,0.00041095,18]
[342853895,1732183853154,-618.7,0.00041095,18]
[342853896,1732183853163,-500.0,0.00041095,18]
[342853897,1732183853173,-1793.76,0.00041095,18]
[342853898,1732183853182,-151.0,0.00041095,14]
[342853899,1732183853191,-500.0,0.00041095,18]
[342853900,1732183853201,-151.0,0.00041095,14]
[342853901,1732183853210,-1350.08,0.00041095,18]
[342853902,1732183853220,-289.675478,0.00041095,14]
[342853903,1732183853230,-873.06,0.00041095,18]
[342853904,1732183853239,-594.24,0.00041095,18]
[342853905,1732183853249,-500.0,0.00041095,18]
[342853906,1732183853258,-3474.35,0.00041095,18]
[342853907,1732183853268,-500.0,0.00041095,18]
[342853908,1732183853277,-1132.1,0.00041095,18]
[342853909,1732183853287,-650.87,0.00041095,18]
[342853910,1732183853297,-500.0,0.00041095,18]
[342853911,1732183853307,-3763.65,0.00041095,18]
[342853912,1732183853316,-1573.3,0.00041095,18]
[342853913,1732183853326,-500.0,0.00041095,18]
[342853914,1732183853336,-500.0,0.00041095,18]
[342853915,1732183853346,-981.92,0.00041095,18]
[342853916,1732183853356,-500.0,0.00041095,18]
[342853917,1732183853366,-500.0,0.00041095,18]
[342853918,1732183853376,-1157.3,0.00041095,18]
[342853919,1732183853385,-1969.85,0.00041095,18]
[342853920,1732183853393,-500.0,0.00041095,18]
[342853921,1732183853402,-500.0,0.00041095,18]
[342853922,1732183853412,-500.0,0.00041095,18]
[342853923,1732183853423,-2005.19,0.00041095,18]
[342853924,1732183853432,-870.95,0.00041095,18]
[342853925,1732183853442,-500.0,0.00041095,18]
[342853926,1732183853452,-500.0,0.00041095,18]
[342853927,1732183853462,-4103.26,0.00041095,18]
[342853928,1732183853471,-500.47,0.00041095,18]
[342853929,1732183853481,-151.0,0.00041095,14]
[342853930,1732183853491,-306.61372816,0.00041095,18]
[342853931,1732183853500,-500.0,0.00041095,18]
[342853932,1732183853510,-151.0,0.00041095,14]
[342853933,1732183853521,-500.0,0.00041095,18]
[342853934,1732183853532,-151.0,0.00041095,14]
[342853935,1732183853542,-151.0,0.00041095,14]
[342853936,1732183853551,-543.02764959,0.00041095,18]
[342853937,1732183853561,-151.0,0.00041095,14]
[342853938,1732183853571,-151.0,0.00041095,14]
[342853939,1732183853580,-738.25,0.00041095,18]
[342853940,1732183853590,-151.0,0.00041095,14]
[342853941,1732183853599,-1015.63,0.00041095,18]
[342853942,1732183853608,-151.0,0.00041095,14]
[342853943,1732183853617,-500.0,0.00041095,18]
[342853944,1732183853626,-500.0,0.00041095,18]
[342853945,1732183853635,-151.0,0.00041095,14]
[342853946,1732183853645,-554.5,0.00041095,18]
[342853947,1732183853654,-151.0,0.00041095,14]
[342853948,1732183853663,-151.0,0.00041095,14]
[342853949,1732183853674,-700.0,0.00041095,18]
[342853950,1732183853683,-500.0,0.00041095,18]
[342853951,1732183853692,-185.386181,0.00041095,14]
[342853952,1732183853701,-151.0,0.00041095,14]
[342853953,1732183853711,-151.0,0.00041095,14]
[342853954,1732183853720,-500.0,0.00041095,18]
[342853955,1732183853732,-1548.39,0.00041095,18]
[342853956,1732183853746,-151.0,0.00041095,14]
[342853957,1732183853755,-500.0,0.00041095,18]
[342853958,1732183853765,-794.15,0.00041095,18]
[342853959,1732183853775,-637.59,0.00041095,18]
[342853960,1732183853784,-854.08,0.00041095,18]
[342853961,1732183853793,-500.0,0.00041095,18]
[342853962,1732183853802,-1360.27,0.00041095,18]
[342853963,1732183853811,-500.50785292,0.00041095,18]
[342853964,1732183853821,-3129.23,0.00041095,18]
[342853965,1732183853830,-151.0,0.00041095,14]
[342853966,1732183853839,-500.0,0.00041095,18]
[342853967,1732183853849,-151.0,0.00041095,14]
[342853968,1732183853859,-151.0,0.00041095,14]
[342853969,1732183853868,-811.41,0.00041095,18]
[342853970,1732183853878,-151.0,0.00041095,14]
[342853971,1732183853888,-1343.91,0.00041095,18]
[342853972,1732183853897,-3029.74,0.00041095,18]
[342853973,1732183853907,-500.0,0.00041095,18]
[342853974,1732183853917,-500.0,0.00041095,18]
[342853975,1732183853928,-500.0,0.00041095,18]
[342853976,1732183853937,-500.0,0.00041095,18]
[342853977,1732183853947,-500.0,0.00041095,18]
[342853978,1732183853957,-500.0,0.00041095,18]
[342853979,1732183853966,-151.0,0.00041095,14]
[342853980,1732183853976,-975.46,0.00041095,18]
[342853981,1732183853987,-800.69,0.00041095,18]
[342853982,1732183853997,-1345.08,0.00041095,18]
[342853983,1732183854006,-674.86,0.00041095,18]
[342853984,1732183854016,-500.0,0.00041095,18]
[342853985,1732183854026,-500.0,0.00041095,18]
[342853986,1732183854037,-1982.78,0.00041095,18]
[342853987,1732183854046,-500.0,0.00041095,18]
[342853988,1732183854056,-795.22,0.00041095,18]
[342853989,1732183854066,-629.5,0.00041095,18]
[342853990,1732183854078,-1103.06,0.00041095,18]
[342853991,1732183854088,-151.0,0.00041095,14]
[342853992,1732183854098,-151.0,0.00041095,14]
[342853993,1732183854107,-151.0,0.00041095,14]
[342853994,1732183854118,-500.0,0.00041095,18]
[342853995,1732183854128,-151.0,0.00041095,14]
[342853996,1732183854138,-151.0,0.00041095,14]
[342853997,1732183854147,-151.0,0.00041095,14]
[342853998,1732183854160,-151.0,0.00041095,14]
[342853999,1732183854172,-1191.37,0.00041095,18]
[342854000,1732183854182,-500.0,0.00041095,18]
[342854001,1732183854192,-853.55,0.00041095,18]
[342854002,1732183854202,-1217.76,0.00041095,18]
[342854003,1732183854212,-500.0,0.00041095,18]
[342854004,1732183854222,-500.0,0.00041095,18]
[342854005,1732183854232,-500.0,0.00041095,18]
[342854006,1732183854242,-1301.55,0.00041095,18]
[342854007,1732183854251,-1221.33,0.00041095,18]
[342854008,1732183854260,-5086.14,0.00041095,18]
[342854009,1732183854270,-500.0,0.00041095,18]
[342854010,1732183854279,-500.82,0.00041095,18]
[342854011,1732183854288,-3048.93,0.00041095,18]
[342854012,1732183854298,-661.53,0.00041095,18]
[342854013,1732183854308,-500.0,0.00041095,18]
[342854014,1732183854318,-500.0,0.00041095,18]
[342854015,1732183854328,-500.0,0.00041095,18]
[342854016,1732183854338,-500.0,0.00041095,18]
[342854017,1732183854347,-527.00978824,0.00041095,7]
[342854018,1732183854357,-500.0,0.00041095,18]
[342854019,1732183854367,-972.8,0.00041095,18]
[342854020,1732183854376,-500.0,0.00041095,18]
[342854021,1732183854386,-500.0,0.00041095,18]
[342854022,1732183854395,-1576.27,0.00041095,18]
[342854023,1732183854404,-608.66,0.00041095,18]
[342854024,1732183854413,-500.0,0.00041095,18]
[342854025,1732183854423,-500.0,0.00041095,18]
[342854026,1732183854432,-1048.96,0.00041095,18]
[342854027,1732183854442,-759.99,0.00041095,18]
[342854028,1732183854452,-500.0,0.00041095,18]
[342854029,1732183854461,-500.0,0.00041095,18]
[342854030,1732183854470,-698.69,0.00041095,18]
[342854031,1732183854479,-1639.13,0.00041095,18]
[342854032,1732183854489,-2839.2,0.00041095,18]
[342854033,1732183854499,-500.0,0.00041095,18]
[342854034,1732183854508,-899.78,0.00041095,18]
[342854035,1732183854518,-500.0,0.00041095,18]
[342854036,1732183854527,-1074.83,0.00041095,18]
[342854037,1732183854537,-151.0,0.00041095,14]
[342854038,1732183854546,-643.19,0.00041095,18]
[342854039,1732183854556,-151.0,0.00041095,14]
[342854040,1732183854565,-151.0,0.00041095,14]
[342854041,1732183854574,-500.0,0.00041095,18]
[342854042,1732183854584,-500.0,0.00041095,18]
[342854043,1732183854593,-151.0,0.00041095,14]
[342854044,1732183854602,-151.0,0.00041095,14]
[342854045,1732183854611,-151.0,0.00041095,14]
[342854046,1732183854621,-205.625745,0.00041095,14]
[342854047,1732183854631,-921.26,0.00041095,18]
[342854048,1732183854641,-500.0,0.00041095,18]
[342854049,1732183854652,-729.1,0.00041095,18]
[342854050,1732183854661,-570.14,0.00041095,18]
[342854051,1732183854672,-614.64,0.00041095,18]
[342854052,1732183854681,-500.0,0.00041095,18]
[342854053,1732183854691,-694.02,0.00041095,18]
[342854054,1732183854700,-696.97,0.00041095,18]
[342854055,1732183854710,-500.0,0.00041095,18]
[342854056,1732183854720,-500.0,0.00041095,18]
[342854057,1732183854729,-605.91,0.00041095,18]
[342854058,1732183854738,-717.67,0.00041095,18]
[342854059,1732183854747,-151.0,0.00041095,14]
[342854060,1732183854756,-151.0,0.00041095,14]
[342854061,1732183854765,-151.0,0.00041095,14]
[342854062,1732183854775,-500.0,0.00041095,18]
[342854063,1732183854784,-151.0,0.00041095,14]
[342854064,1732183854793,-610.85,0.00041095,18]
[342854065,1732183854910,-500.0,0.00041095,18]
[342854066,1732183854920,-969.44,0.00041095,18]
[342854067,1732183854930,-1113.94,0.00041095,18]
[342854068,1732183854940,-2394.17,0.00041095,18]
[342854069,1732183854957,-839.51,0.00041095,18]
[342854070,1732183854967,-697.14,0.00041095,18]
[342854071,1732183854977,-1133.11,0.00041095,18]
[342854072,1732183854986,-591.83384444,0.00041095,18]
[342854073,1732183854995,-511.61,0.00041095,18]
[342854074,1732183855005,-151.0,0.00041095,14]
[342854075,1732183855015,-151.0,0.00041095,14]
[342854076,1732183855025,-151.0,0.00041095,14]
[342854077,1732183855034,-151.0,0.00041095,14]
[342854078,1732183855043,-500.0,0.00041095,18]
[342854079,1732183855052,-500.0,0.00041095,18]
[342854080,1732183855061,-500.0,0.00041095,18]
[342854081,1732183855072,-500.0,0.00041095,18]
[342854082,1732183855087,-1211.51,0.00041095,18]
[342854083,1732183855097,-1150.5,0.00041095,18]
[342854084,1732183855107,-1315.21,0.00041095,18]
[342854085,1732183855117,-500.0,0.00041095,18]
[342854086,1732183855127,-530.58,0.00041095,18]
[342854087,1732183855137,-1374.48,0.00041095,18]
[342854088,1732183855153,-500.0,0.00041095,18]
[342854089,1732183855162,-2398.74,0.00041095,18]
[342854090,1732183855172,-500.0,0.00041095,18]
[342854091,1732183855182,-500.0,0.00041095,18]
[342854092,1732183855192,-500.0,0.00041095,18]
[342854093,1732183855201,-500.0,0.00041095,18]
[342854094,1732183855210,-500.0,0.00041095,18]
[342854095,1732183855220,-500.0,0.00041095,18]
[342854096,1732183855229,-500.0,0.00041095,18]
[342854097,1732183855239,-817.9,0.00041095,18]
[342854098,1732183855248,-1305.38,0.00041095,18]
[342854099,1732183855257,-792.0,0.00041095,18]
[342854100,1732183855267,-500.0,0.00041095,18]
[342854101,1732183855276,-500.0,0.00041095,18]
[342854102,1732183855286,-500.0,0.00041095,18]
[342854103,1732183855299,-500.0,0.00041095,18]
[342854104,1732183855310,-1658.92,0.00041095,18]
[342854105,1732183855322,-500.0,0.00041095,18]
[342854106,1732183855333,-1842.6,0.00041095,18]
[342854107,1732183855346,-519.35,0.00041095,18]
[342854108,1732183855364,-920.35,0.00041095,18]
[342854109,1732183855374,-300.0,0.00041095,18]
[342854110,1732183855384,-552.05,0.00041095,18]
[342854111,1732183855394,-500.0,0.00041095,18]
[342854112,1732183855403,-173.31772,0.00041095,14]
[342854113,1732183855413,-173.31772,0.00041095,14]
[342854114,1732183855422,-173.31772,0.00041095,14]
[342854115,1732183855437,-173.31772,0.00041095,14]
[342854116,1732183855446,-500.0,0.00041095,18]
[342854117,1732183855456,-500.0,0.00041095,18]
[342854118,1732183855465,-277.238361,0.00041095,14]
[342854119,1732183855474,-500.0,0.00041095,18]
[342854120,1732183855484,-500.0,0.00041095,18]
[342854121,1732183855494,-500.0,0.00041095,18]
[342854122,1732183855505,-173.31772,0.00041095,14]
[342854123,1732183855515,-173.31772,0.00041095,14]
[342854124,1732183855524,-173.31772,0.00041095,14]
[342854125,1732183855534,-173.31772,0.00041095,14]
[342854126,1732183855544,-806.96,0.00041095,18]
[342854127,1732183855553,-2745.52,0.00041095,18]
[342854128,1732183855563,-500.0,0.00041095,18]
[342854129,1732183855572,-500.0,0.00041095,18]
[342854130,1732183855581,-546.75,0.00041095,18]
[342854131,1732183855590,-855.24,0.00041095,18]
[342854132,1732183855600,-500.0,0.00041095,18]
[342854133,1732183855609,-920.12,0.00041095,18]
[342854134,1732183855618,-500.0,0.00041095,18]
[342854135,1732183855627,-1187.92,0.00041095,18]
[342854136,1732183855637,-1180.21,0.00041095,18]
[342854137,1732183855646,-500.0,0.00041095,18]
[342854138,1732183855655,-500.0,0.00041095,18]
[342854139,1732183855665,-151.0,0.00041095,14]
[342854140,1732183855678,-151.0,0.00041095,14]
[342854141,1732183855688,-151.0,0.00041095,14]
[342854142,1732183855697,-500.0,0.00041095,18]
[342854143,1732183855707,-833.17,0.00041095,18]
[342854144,1732183855717,-151.0,0.00041095,14]
[342854145,1732183855727,-500.0,0.00041095,18]
[342854146,1732183855737,-500.0,0.00041095,18]
[342854147,1732183855746,-2157.5,0.00041095,18]
[342854148,1732183855756,-2009.8,0.00041095,18]
[342854149,1732183855767,-557.86,0.00041095,18]
[342854150,1732183855776,-500.0,0.00041095,18]
[342854151,1732183855786,-500.0,0.00041095,18]
[342854152,1732183855795,-500.0,0.00041095,18]
[342854153,1732183855804,-5481.08,0.00041095,18]
[342854154,1732183855814,-751.05,0.00041095,18]
[342854155,1732183855823,-1408.72,0.00041095,18]
[342854156,1732183855833,-462.90202433,0.00041095,18]
[342854157,1732183855842,-500.0,0.00041095,18]
[342854158,1732183855851,-500.0,0.00041095,18]
[342854159,1732183855860,-500.0,0.00041095,18]
[342854160,1732183855869,-915.09,0.00041095,18]
[342854161,1732183855879,-500.0,0.00041095,18]
[342854162,1732183855888,-500.0,0.00041095,18]
[342854163,1732183855898,-151.0,0.00041095,14]
[342854164,1732183855907,-500.0,0.00041095,18]
[342854165,1732183855917,-500.0,0.00041095,18]
[342854166,1732183855926,-946.38,0.00041095,18]
[342854167,1732183855935,-545.42,0.00041095,18]
[342854168,1732183855953,-3084.2,0.00041095,18]
[342854169,1732183855962,-500.0,0.00041095,18]
[342854170,1732183855972,-500.0,0.00041095,18]
[342854171,1732183855981,-500.0,0.00041095,18]
[342854172,1732183855991,-2021.37,0.00041095,18]
[342854173,1732183856000,-643.86,0.00041095,18]
[342854174,1732183856009,-500.0,0.00041095,18]
[342854175,1732183856018,-500.0,0.00041095,18]
[342854176,1732183856028,-500.0,0.00041095,18]
[342854177,1732183856037,-500.0,0.00041095,18]
[342854178,1732183856047,-500.0,0.00041095,18]
[342854179,1732183856056,-500.0,0.00041095,18]
[342854180,1732183856065,-2693.43,0.00041095,18]
[342854181,1732183856076,-500.0,0.00041095,18]
[342854182,1732183856088,-500.0,0.00041095,18]
[342854183,1732183856097,-728.36,0.00041095,18]
[342854184,1732183856106,-671.77,0.00041095,18]
[342854185,1732183856115,-1150.68,0.00041095,18]
[342854186,1732183856125,-1986.33,0.00041095,18]
[342854187,1732183856134,-500.0,0.00041095,18]
[342854188,1732183856144,-500.0,0.00041095,18]
[342854189,1732183856154,-500.0,0.00041095,18]
[342854190,1732183856163,-500.0,0.00041095,18]
[342854191,1732183856173,-500.0,0.00041095,18]
[342854192,1732183856184,-737.95,0.00041095,18]
[342854193,1732183856193,-500.0,0.00041095,16]
[342854194,1732183856202,-1539.93,0.00041095,18]
[342854195,1732183856211,-500.0,0.00041095,18]
[342854196,1732183856220,-3016.49,0.00041095,18]
[342854197,1732183856230,-500.0,0.00041095,18]
[342854198,1732183856239,-881.69,0.00041095,18]
[342854199,1732183856249,-2411.92,0.00041095,18]
[342854200,1732183856258,-500.0,0.00041095,18]
[342854201,1732183856267,-500.0,0.00041095,18]
[342854202,1732183856277,-500.0,0.00041095,18]
[342854203,1732183856286,-995.91,0.00041095,18]
[342854204,1732183856295,-544.59,0.00041095,18]
[342854205,1732183856305,-2731.14,0.00041095,18]
[342854206,1732183856314,-500.0,0.00041095,18]
[342854207,1732183856323,-5151.16,0.00041095,18]
[342854208,1732183856333,-1342.148492,0.00041095,14]
[342854209,1732183856342,-500.0,0.00041095,18]
[342854210,1732183856351,-1342.148492,0.00041095,14]
[342854211,1732183856360,-558.13062886,0.00041095,18]
[342854212,1732183856369,-1342.148492,0.00041095,14]
[342854213,1732183856378,-500.0,0.00041095,18]
[342854214,1732183856387,-1342.148492,0.00041095,14]
[342854215,1732183856396,-500.0,0.00041095,18]
[342854216,1732183856405,-1087.9,0.00041095,18]
[342854217,1732183856414,-2603.61,0.00041095,18]
[342854218,1732183856423,-1216.1,0.00041095,18]
[342854219,1732183856434,-1342.148492,0.00041095,14]
[342854220,1732183856443,-371.6025011,0.00041095,18]
[342854221,1732183856452,-1342.148492,0.00041095,14]
[342854222,1732183856461,-500.0,0.00041095,18]
[342854223,1732183856470,-500.0,0.00041095,18]
[342854224,1732183856478,-1342.148492,0.00041095,14]
[342854225,1732183856488,-1170.03154055,0.00041095,30]
[342854226,1732183856497,-1342.148492,0.00041095,14]
[342854227,1732183856506,-500.0,0.00041095,18]
[342854228,1732183856515,-500.0,0.00041095,18]